bitfinex/quotes_ETHUSD_20250625
["timestamp","ask_amount","ask_price","bid_price","bid_amount"]
[1750879628519,9.5645,2434.9,2433.9,10.0]
[1750879628701,9.679,2434.9,2434.6,4.10744488]
[1750879629039,9.679,2434.9,2434.5,4.31232561]
[1750879629244,9.679,2434.9,2434.5,0.2048]
[1750879629245,15.16456719,2434.9,2434.5,0.2048]
[1750879629613,13.78598024,2434.9,2434.5,0.2048]
[1750879630047,13.78596826,2434.9,2434.5,0.2048]
[1750879630249,4.10712291,2434.8,2434.5,0.2048]
[1750879631114,4.10723904,2434.8,2434.5,0.2048]
[1750879631309,9.679,2434.9,2434.5,0.2048]
[1750879631516,4.10711352,2434.8,2434.5,0.2048]
[1750879632133,9.679,2434.9,2434.5,0.2048]
[1750879632332,0.2048,2434.9,2434.7,4.10715656]
[1750879632659,0.2048,2434.9,2434.6,0.7823]
[1750879632660,1.833,2434.8,2434.6,4.88967285]
[1750879632817,0.2048,2434.9,2434.6,4.88967285]
[1750879633021,8.8998,2434.9,2434.7,4.10722713]
[1750879633749,8.8998,2434.9,2434.8,4.10711352]
[1750879633963,0.8236,2435.2,2434.8,4.10711352]
[1750879634129,12.04526525,2436.0,2434.8,4.31180116]
[1750879634130,0.2048,2435.3,2434.8,4.31180116]
[1750879634329,0.8236,2435.4,2434.6,4.88970379]
[1750879634330,1.834,2435.2,2434.6,0.7823]
[1750879634530,0.2048,2435.5,2435.2,4.10643889]
[1750879634730,8.695,2435.4,2435.2,4.10643889]
[1750879635234,1.834,2435.4,2435.2,4.10643889]
[1750879635433,0.8236,2435.6,2435.4,4.10610166]
[1750879635638,8.695,2435.5,2435.4,4.10610166]
[1750879636460,8.695,2435.5,2435.3,4.3109834]
[1750879637856,8.695,2435.5,2435.3,0.2048]
[1750879638761,8.695,2435.5,2435.3,4.31106877]
[1750879638926,8.695,2435.5,2435.4,4.10610166]
[1750879639137,8.695,2435.5,2435.3,0.2048]
[1750879639342,8.693,2435.6,2435.3,4.31100272]
[1750879639563,8.693,2435.6,2435.4,4.10607852]
[1750879639955,0.2048,2435.7,2435.4,4.10607852]
[1750879640157,8.692,2435.6,2435.4,4.10607852]
[1750879640475,0.2048,2435.7,2435.5,4.10592066]
[1750879640672,8.692,2435.8,2435.5,4.10593307]
[1750879640840,1.833,2435.8,2435.6,4.10565823]
[1750879641168,8.692,2435.8,2435.6,4.10565823]
[1750879641673,8.692,2435.8,2435.5,4.31064065]
[1750879641877,8.692,2435.8,2435.6,4.10576385]
[1750879642242,8.692,2435.8,2435.5,0.2048]
[1750879642243,8.692,2435.8,2435.5,4.31064531]
[1750879642884,8.692,2435.8,2435.5,4.10584531]
[1750879643054,8.8968,2435.8,2435.5,4.10584531]
[1750879643883,0.7573,2435.7,2435.4,0.2048]
[1750879644185,0.7573,2435.7,2435.3,4.1062546]
[1750879644346,0.7573,2435.7,2435.2,4.10643126]
[1750879644545,4.86290758,2435.7,2435.3,4.10623291]
[1750879644757,4.10578368,2435.6,2435.1,4.10653356]
[1750879644974,0.7573,2435.7,2435.4,4.10598961]
[1750879645478,0.7573,2435.7,2435.3,4.1061831]
[1750879646754,0.7573,2435.7,2435.4,4.10608101]
[1750879647576,0.7573,2435.7,2435.1,4.10651382]
[1750879647577,4.10578416,2435.6,2435.1,4.10651382]
[1750879647801,4.10578416,2435.6,2435.0,4.10677618]
[1750879647802,4.10594898,2435.5,2435.0,4.10668975]
[1750879647977,11.73887796,2435.4,2434.9,4.10694248]
[1750879648291,0.7757,2435.1,2433.9,0.7514]
[1750879648450,0.7698,2434.8,2434.3,4.10783213]
[1750879648651,1.833,2434.7,2434.4,4.10766541]
[1750879648953,6.857,2434.6,2434.4,4.10766541]
[1750879649579,6.857,2434.6,2434.5,4.10761963]
[1750879649775,6.857,2434.6,2434.3,4.10783213]
[1750879649977,4.1066575,2435.1,2434.3,4.10783213]
[1750879649978,0.7698,2435.3,2434.5,0.7626]
[1750879650182,0.7698,2435.3,2434.6,4.10745091]
[1750879650183,18.684,2435.2,2434.6,4.10745091]
[1750879650385,4.10663788,2435.1,2434.6,4.1074013]
[1750879651254,8.686,2435.0,2434.8,4.10699492]
[1750879651453,8.686,2435.0,2434.9,4.10694484]
[1750879652162,0.7698,2435.6,2435.1,4.10660753]
[1750879652361,1.829,2435.7,2435.4,4.10597834]
[1750879652584,8.685,2435.8,2435.4,4.10597834]
[1750879653371,8.685,2435.8,2435.3,4.1061781]
[1750879653589,12.79043525,2435.8,2435.3,4.1061781]
[1750879653976,0.2048,2435.7,2435.3,4.1061781]
[1750879654181,4.31046138,2435.7,2435.2,0.2048]
[1750879654602,4.10580982,2435.6,2435.2,0.2048]
[1750879655023,10.7533,2436.2,2435.3,0.7585]
[1750879655171,1.828,2436.1,2435.4,4.10610166]
[1750879655497,8.683,2436.1,2435.7,4.10543731]
[1750879655678,8.683,2436.1,2435.3,0.7585]
[1750879655879,8.683,2436.1,2435.4,4.59259091]
[1750879656098,1.828,2436.1,2435.5,0.55]
[1750879656405,8.683,2436.3,2436.1,4.10490542]
[1750879656703,8.683,2436.3,2435.8,4.10537765]
[1750879656883,8.683,2436.3,2435.8,4.59863542]
[1750879657084,8.683,2436.3,2435.9,4.10516301]
[1750879657472,8.683,2436.3,2435.6,4.93290718]
[1750879657674,4.92411178,2436.1,2435.5,4.10593307]
[1750879657899,6.28482296,2436.1,2435.5,10.0]
[1750879658101,6.28482296,2436.1,2435.6,4.10575381]
[1750879658400,6.28473902,2436.1,2435.4,5.39560816]
[1750879658709,4.10392551,2436.7,2435.9,0.793]
[1750879658710,0.7912,2436.7,2435.9,0.793]
[1750879658872,4.89522544,2436.7,2436.0,0.55]
[1750879659105,4.89511601,2436.7,2436.1,0.54481447]
[1750879659305,4.89516515,2436.7,2436.0,4.10504893]
[1750879659500,10.95812195,2436.6,2435.9,4.89817614]
[1750879659713,1.828,2436.6,2436.4,4.10440723]
[1750879659914,0.7912,2436.9,2436.3,4.10455566]
[1750879660231,8.682,2436.8,2436.6,4.10397262]
[1750879660548,8.682,2436.8,2436.6,4.10396809]
[1750879660747,8.682,2436.8,2436.4,0.793]
[1750879661028,8.682,2436.7,2436.0,0.793]
[1750879661211,0.7912,2436.5,2435.8,0.793]
[1750879661415,0.7912,2436.5,2436.2,4.10466474]
[1750879661606,8.681,2436.4,2436.2,4.10466474]
[1750879662126,1.828,2436.4,2436.1,4.10479581]
[1750879662433,1.828,2436.4,2436.0,4.10498253]
[1750879662636,1.828,2436.4,2436.0,10.0]
[1750879662936,1.828,2436.4,2436.1,4.10488452]
[1750879663347,1.828,2436.4,2436.0,4.10500825]
[1750879663639,1.828,2436.4,2435.9,4.10512884]
[1750879663818,1.828,2436.4,2436.0,4.10506028]
[1750879664638,1.828,2436.4,2436.0,4.10507475]
[1750879664836,1.828,2436.4,2435.9,4.10518411]
[1750879665033,0.2048,2436.3,2435.9,4.30991328]
[1750879665231,0.2048,2436.3,2436.0,4.1049432]
[1750879665538,0.2048,2436.3,2436.1,4.10492167]
[1750879665747,0.2048,2436.3,2435.9,4.30991328]
[1750879665748,4.30939545,2436.3,2435.9,0.2048]
[1750879665929,4.30939545,2436.3,2435.3,14.40740153]
[1750879665930,0.8151,2436.1,2435.3,4.10627027]
[1750879666115,4.31040257,2435.7,2435.2,4.72147403]
[1750879666445,8.679,2435.6,2435.2,4.72147403]
[1750879666642,0.2048,2435.7,2435.2,4.72147403]
[1750879666643,0.2048,2435.7,2435.2,0.61512375]
[1750879666949,0.7754,2436.0,2435.7,4.10555243]
[1750879666950,8.679,2435.9,2435.7,4.10555243]
[1750879667130,2.8082,2436.0,2435.7,4.10555243]
[1750879667317,0.2048,2436.0,2435.9,4.10525883]
[1750879667512,1.828,2436.4,2436.2,4.10465872]
[1750879667716,2.0328,2436.4,2436.3,4.10458482]
[1750879668626,8.8838,2436.4,2436.3,4.10458482]
[1750879669848,1.828,2436.5,2436.4,4.10433049]
[1750879670032,8.679,2436.5,2436.4,4.10433049]
[1750879672740,0.2048,2436.7,2436.6,4.10407945]
[1750879672939,8.678,2437.0,2436.7,4.10383439]
[1750879673247,8.678,2437.0,2436.7,0.2048]
[1750879673452,0.2048,2436.9,2436.5,4.30904789]
[1750879673650,0.2048,2436.9,2436.6,4.10407945]
[1750879673832,0.2048,2436.9,2436.5,0.2048]
[1750879674238,7.0548,2436.9,2436.5,0.2048]
[1750879674441,8.678,2436.9,2436.8,4.10365882]
[1750879675033,8.678,2436.9,2436.7,0.2048]
[1750879675362,8.678,2436.9,2436.7,4.3086174]
[1750879675841,8.677,2436.9,2436.8,4.10374261]
[1750879677874,0.2048,2437.1,2436.7,0.2048]
[1750879678173,8.677,2437.0,2436.8,4.10373922]
[1750879678373,8.677,2437.0,2436.7,4.30870949]
[1750879678975,8.677,2437.0,2436.5,4.10418019]
[1750879678976,0.8003,2436.8,2436.4,4.10432519]
[1750879679274,0.8003,2436.8,2436.5,0.2048]
[1750879679474,0.8003,2436.8,2436.5,4.30901392]
[1750879679879,0.2048,2436.9,2436.7,4.10391102]
[1750879680043,0.2048,2436.9,2436.8,4.10374261]
[1750879680655,0.2048,2436.9,2436.7,4.10391102]
[1750879680656,0.2048,2436.9,2436.7,4.10384316]
[1750879680998,0.2048,2436.9,2436.6,4.10400409]
[1750879681553,0.2048,2436.9,2436.5,4.30898524]
[1750879682082,0.2048,2436.9,2436.6,4.10406611]
[1750879683166,0.2048,2436.9,2436.8,4.90954261]
[1750879683342,8.673,2437.2,2437.1,4.10323745]
[1750879683748,1.825,2437.2,2437.1,4.10323745]
[1750879684545,0.2048,2437.3,2436.8,1.0106]
[1750879684747,8.672,2437.4,2437.1,4.10314622]
[1750879684949,8.672,2437.4,2437.1,4.10314704]
[1750879685757,8.672,2437.4,2437.0,0.2048]
[1750879685962,8.672,2437.4,2437.0,4.30816585]
[1750879686686,8.672,2437.4,2436.6,4.10392717]
[1750879686687,0.2048,2437.0,2436.7,4.10391102]
[1750879686983,7.0518,2437.0,2436.8,4.10366743]
[1750879687157,1.824,2436.9,2436.6,4.30882404]
[1750879687360,2.6003,2436.9,2436.6,0.2048]
[1750879687762,0.7763,2436.8,2436.6,0.2048]
[1750879687958,0.9811,2436.8,2436.4,4.10437434]
[1750879688287,0.9811,2436.8,2436.3,0.9565]
[1750879688288,5.0848467,2436.8,2436.3,4.30929212]
[1750879688583,5.0848467,2436.8,2436.4,4.10441635]
[1750879688584,0.9811,2436.8,2436.4,4.10441635]
[1750879688783,5.0848614,2436.8,2436.3,4.3092719]
[1750879688958,0.9811,2436.8,2436.4,4.10429848]
[1750879689167,0.9811,2436.8,2436.4,4.1043729]
[1750879689501,5.08490708,2436.8,2436.3,4.30935778]
[1750879690571,4.1039122,2436.7,2436.3,0.2048]
[1750879690773,6.846,2436.6,2436.3,0.2048]
[1750879691094,6.846,2436.6,2436.4,4.10441304]
[1750879692307,6.846,2436.6,2436.3,4.30937783]
[1750879692308,0.2048,2436.4,2436.1,4.10475657]
[1750879692602,2.0288,2436.4,2436.0,4.30983665]
[1750879692779,2.0288,2436.4,2436.1,4.1048283]
[1750879692979,1.824,2436.4,2435.5,1.16203946]
[1750879693182,0.8008,2436.1,2435.9,4.10525346]
[1750879693386,6.846,2436.1,2436.0,4.10509031]
[1750879693906,0.2048,2436.2,2436.0,4.10509031]
[1750879693907,0.2048,2436.2,2436.1,4.1049218]
[1750879694220,0.8008,2437.3,2436.6,0.7518]
[1750879694221,1.825,2437.1,2436.6,0.7518]
[1750879694376,1.825,2437.1,2437.0,4.10340582]
[1750879697310,1.825,2437.1,2436.6,4.85586362]
[1750879697499,1.825,2437.1,2436.6,5.34144998]
[1750879697901,1.825,2437.1,2436.7,4.10382796]
[1750879698706,1.825,2437.1,2436.7,4.10386124]
[1750879700375,1.825,2437.1,2436.8,4.10374243]
[1750879700610,1.825,2437.1,2436.7,4.10383796]
[1750879701009,1.825,2437.1,2436.6,0.7518]
[1750879701010,4.10340582,2437.0,2436.5,4.10412519]
[1750879701390,0.7983,2436.9,2436.5,4.10412519]
[1750879701591,0.7983,2436.9,2436.4,4.10438225]
[1750879701782,6.845,2436.8,2436.3,4.10450358]
[1750879701982,10.94881992,2436.8,2436.3,4.10450358]
[1750879702179,10.94881992,2436.8,2435.9,4.10516721]
[1750879702180,0.7557,2436.7,2435.8,0.7721]
[1750879702381,5.92815611,2436.6,2436.1,4.10484266]
[1750879702597,1.824,2436.6,2436.2,4.10472756]
[1750879702926,3.17686818,2436.6,2436.2,4.10472756]
[1750879703294,7.28095548,2436.6,2436.1,4.10483216]
[1750879703705,3.17686818,2436.6,2436.2,4.10472445]
[1750879704230,0.2048,2436.5,2436.1,4.10484578]
[1750879704434,6.845,2436.4,2436.1,4.10484578]
[1750879705132,6.845,2436.4,2436.0,4.30980685]
[1750879705334,6.845,2436.4,2436.1,4.10490624]
[1750879706336,6.845,2436.4,2436.2,4.10474636]
[1750879707037,6.845,2436.4,2436.1,4.10485581]
[1750879707225,6.845,2436.4,2436.1,4.10475449]
[1750879707426,6.845,2436.4,2436.1,4.10481327]
[1750879707839,6.845,2436.4,2436.0,4.3098037]
[1750879708045,6.845,2436.4,2436.0,0.2048]
[1750879708340,6.845,2436.4,2436.0,4.3097394]
[1750879708535,6.845,2436.4,2436.1,4.10480732]
[1750879709536,4.89182354,2436.3,2436.0,0.2048]
[1750879709739,4.89182354,2436.3,2435.6,4.1056456]
[1750879709740,4.10509591,2436.0,2435.7,0.2048]
[1750879709905,4.10509591,2436.0,2435.5,0.61503946]
[1750879709906,8.8758,2435.9,2435.5,0.61503946]
[1750879710110,8.8758,2435.9,2435.8,4.10542737]
[1750879710311,8.671,2435.9,2435.8,4.10542737]
[1750879710941,0.7871,2436.2,2436.1,4.1049218]
[1750879711143,0.7871,2436.2,2435.9,4.31005883]
[1750879711144,9.4561,2436.2,2435.9,4.31005883]
[1750879711313,9.4561,2436.2,2436.0,4.10505853]
[1750879711641,9.4561,2436.2,2436.1,4.1049218]
[1750879712743,8.669,2436.2,2436.1,4.1049218]
[1750879712949,8.669,2436.2,2435.9,0.2048]
[1750879713124,9.63733,2436.2,2435.6,0.7872]
[1750879713332,9.84213,2436.2,2435.8,4.10527566]
[1750879713663,9.84213,2436.2,2435.9,4.10522821]
[1750879714005,1.17313,2436.2,2435.8,4.105337]
[1750879714261,4.10519114,2436.0,2435.5,0.41023946]
[1750879714453,0.2048,2435.8,2435.5,0.41023946]
[1750879714901,0.2048,2435.8,2435.6,4.10576131]
[1750879715988,0.2048,2435.8,2435.7,4.10559592]
[1750879716880,0.2048,2435.8,2435.6,4.10567875]
[1750879717220,0.2048,2435.8,2435.4,4.10601999]
[1750879717421,0.8272,2435.7,2435.4,4.10601999]
[1750879717577,0.8272,2435.7,2435.4,4.10599569]
[1750879717785,0.8272,2435.7,2435.5,4.10589405]
[1750879718089,1.032,2435.7,2435.5,4.10589405]
[1750879718300,1.032,2435.7,2435.4,4.10601837]
[1750879718504,1.032,2435.7,2435.3,4.31093629]
[1750879718710,1.032,2435.7,2435.5,4.10581836]
[1750879719429,1.032,2435.7,2435.3,4.31101931]
[1750879719915,1.032,2435.7,2435.4,4.10602079]
[1750879720117,1.032,2435.7,2435.5,4.10583365]
[1750879720325,1.032,2435.7,2435.5,4.10591657]
[1750879720719,8.67,2436.1,2435.6,4.89426449]
[1750879720932,8.67,2436.1,2436.0,4.10509031]
[1750879720933,1.823,2436.1,2436.0,4.10509031]
[1750879721424,1.823,2436.1,2436.0,4.30989031]
[1750879725192,1.823,2436.1,2436.0,0.2048]
[1750879725436,0.2048,2436.0,2435.8,4.10537197]
[1750879725923,0.2048,2436.0,2435.7,4.10551307]
[1750879726124,7.0518,2436.0,2435.6,4.31054487]
[1750879726338,0.2048,2435.9,2435.4,0.2048]
[1750879726544,0.2048,2435.9,2435.7,4.10559051]
[1750879727244,0.2048,2435.9,2435.8,4.10542737]
[1750879727921,0.2048,2435.9,2435.7,4.10552756]
[1750879728324,0.2048,2435.9,2435.8,4.10542737]
[1750879728659,0.2048,2436.3,2436.2,4.10467064]
[1750879728940,0.2048,2436.3,2435.8,1.80349932]
[1750879728941,0.2048,2436.3,2436.1,4.10483137]
[1750879729346,0.2048,2436.3,2436.2,4.1047533]
[1750879729531,2.5771,2436.4,2436.3,4.10458482]
[1750879729532,1.824,2436.4,2436.3,4.10458482]
[1750879731341,1.824,2436.4,2436.3,4.30938482]
[1750879731735,1.824,2436.4,2436.3,0.2048]
[1750879732047,0.2048,2436.7,2436.6,4.10407945]
[1750879732239,8.67,2436.6,2436.5,4.104169]
[1750879732946,0.2048,2436.7,2436.5,4.104169]
[1750879733122,8.67,2436.6,2436.5,4.104169]
[1750879733328,8.67,2436.6,2436.4,4.10432477]
[1750879733951,8.67,2436.6,2436.5,4.10424789]
[1750879734448,8.67,2436.6,2436.4,4.10434424]
[1750879735048,8.67,2436.6,2436.3,5.0932094]
[1750879735215,8.67,2436.6,2436.3,4.3093094]
[1750879735523,6.846,2436.5,2436.3,0.2048]
[1750879735726,7.6616,2436.5,2436.3,0.2048]
[1750879737250,7.6616,2436.5,2436.3,4.30936143]
[1750879738022,7.6616,2436.5,2436.3,0.2048]
[1750879738946,7.6616,2436.5,2436.3,4.30937961]
[1750879739624,1.824,2436.6,2436.3,4.30937961]
[1750879739625,0.7947,2437.1,2436.5,4.10424789]
[1750879739826,2.8235,2437.1,2436.9,4.10355035]
[1750879740022,2.0288,2437.1,2437.0,4.10340582]
[1750879740345,2.0288,2437.1,2436.9,4.10352002]
[1750879740551,2.0288,2437.1,2437.0,4.10340582]
[1750879741228,2.0288,2437.1,2436.8,4.87418312]
[1750879741428,2.0288,2437.1,2436.9,4.10355735]
[1750879741831,8.8738,2437.1,2436.9,4.10357421]
[1750879742260,8.8738,2437.1,2436.9,4.10354407]
[1750879743155,8.8738,2437.1,2436.8,4.87427835]
[1750879744164,10.25413352,2437.1,2436.7,4.10387543]
[1750879745644,10.25413352,2437.1,2436.8,4.10363161]
[1750879746183,2.6046,2437.5,2437.3,4.10280184]
[1750879746366,8.8708,2437.5,2437.0,0.2048]
[1750879746543,8.8708,2437.5,2437.2,4.10292227]
[1750879747052,8.8708,2437.5,2437.3,4.10286665]
[1750879747251,8.8708,2437.5,2437.3,4.10283452]
[1750879747450,8.8708,2437.5,2437.2,4.102954]
[1750879748146,8.8708,2437.5,2437.3,4.10279475]
[1750879749272,8.8708,2437.5,2437.3,4.10283446]
[1750879749485,8.8708,2437.5,2437.4,4.10273241]
[1750879750144,2.0268,2437.5,2437.4,4.10273241]
[1750879750451,1.822,2437.5,2437.4,4.10273241]
[1750879750671,8.664,2437.5,2437.4,4.10273241]
[1750879750864,0.2048,2437.6,2437.5,4.1025641]
[1750879751182,7.0468,2437.8,2437.7,4.1022275]
[1750879751356,0.2048,2437.8,2437.7,4.1022275]
[1750879751978,8.669,2437.9,2437.8,4.10205923]
[1750879752153,8.669,2437.9,2437.6,4.30711109]
[1750879752357,10.2516544,2437.9,2437.5,4.1024565]
[1750879752565,0.8031,2437.8,2437.4,0.2048]
[1750879752884,0.8031,2437.8,2437.4,4.10264431]
[1750879753672,0.8031,2437.8,2437.3,4.10274403]
[1750879753878,0.8031,2437.8,2437.4,4.1027154]
[1750879754816,0.8031,2437.8,2437.3,4.10282094]
[1750879755095,4.1023081,2437.7,2437.0,0.7677]
[1750879755250,0.8031,2437.6,2436.7,0.7677]
[1750879755450,6.841,2437.5,2437.1,4.10308505]
[1750879755696,1.822,2437.4,2437.2,4.10302985]
[1750879755897,0.8031,2437.6,2436.8,14.10368015]
[1750879756098,8.663,2437.4,2437.2,4.10296988]
[1750879756282,8.663,2437.4,2436.8,0.48715768]
[1750879756592,8.663,2437.4,2437.2,4.10296042]
[1750879756752,8.663,2437.4,2436.7,4.87147288]
[1750879756753,1.822,2437.4,2437.3,4.10277541]
[1750879756958,8.663,2437.4,2437.3,4.10277541]
[1750879757158,8.663,2437.4,2437.2,4.10298739]
[1750879757370,8.663,2437.4,2437.3,4.10290075]
[1750879758587,8.663,2437.4,2437.2,4.10297732]
[1750879759384,8.663,2437.4,2436.8,4.1037236]
[1750879759592,8.663,2437.4,2437.1,4.10309138]
[1750879759775,8.663,2437.4,2437.2,4.10298502]
[1750879760385,8.663,2437.4,2437.1,4.10310883]
[1750879760561,0.8031,2437.6,2437.2,4.10296736]
[1750879760761,9.4651,2437.6,2437.2,4.10296736]
[1750879760983,9.4651,2437.6,2437.0,4.10335699]
[1750879760984,0.7973,2437.7,2437.3,0.804]
[1750879761387,0.7973,2437.7,2437.2,4.10293499]
[1750879761782,7.8,2437.8,2437.3,1.66739071]
[1750879762065,0.005,2437.9,2437.3,1.66739071]
[1750879762066,0.005,2437.9,2437.7,4.10219767]
[1750879762694,0.005,2437.9,2437.8,4.87185923]
[1750879763602,0.005,2437.9,2437.8,15.42185923]
[1750879763801,0.32384022,2438.8,2438.7,4.10054537]
[1750879764100,0.32384022,2438.8,2438.7,4.87034537]
[1750879765607,0.32384022,2438.8,2438.7,0.7698]
[1750879766292,0.32384022,2438.8,2438.7,15.35740496]
[1750879766493,0.32384022,2438.8,2438.7,14.87034537]
[1750879766889,0.32384022,2438.8,2438.7,22.25834537]
[1750879767191,0.32384022,2438.8,2438.7,10.7698]
[1750879767600,0.32384022,2438.8,2438.7,0.7698]
[1750879768720,0.32384022,2438.8,2438.2,0.7637]
[1750879768721,4.10065569,2438.7,2438.2,0.7637]
[1750879768920,0.32384022,2438.8,2438.2,1.2502161]
[1750879769125,0.32384022,2438.8,2438.2,5.35157685]
[1750879769126,4.42428057,2438.8,2438.2,5.35157685]
[1750879769422,4.10089162,2438.5,2438.2,0.7637]
[1750879769628,4.10089162,2438.5,2438.0,4.10162553]
[1750879769629,4.10138695,2438.2,2437.8,0.7637]
[1750879769804,5.92217022,2438.4,2437.8,4.86571618]
[1750879770000,1.821,2438.4,2437.9,4.58836581]
[1750879770216,1.821,2438.4,2438.0,4.10171538]
[1750879770526,1.821,2438.4,2437.9,14.58837718]
[1750879770691,5.92216661,2438.4,2437.9,0.48657162]
[1750879770888,5.92216661,2438.4,2437.9,4.588449]
[1750879771118,1.821,2438.4,2438.0,4.10172257]
[1750879771423,1.821,2438.4,2438.3,4.10121806]
[1750879771720,2.14484022,2438.8,2438.2,10.0]
[1750879772028,0.32384022,2438.8,2438.2,4.10138626]
[1750879772227,2.14684022,2438.8,2438.4,4.10104463]
[1750879772721,2.14684022,2438.8,2437.4,4.86632278]
[1750879772722,0.7817,2438.5,2437.4,4.86632278]
[1750879773048,4.10188381,2438.0,2437.4,4.86634591]
[1750879773250,1.823,2437.9,2437.5,10.0]
[1750879773523,1.823,2437.8,2437.6,5.58892061]
[1750879773825,1.823,2437.8,2437.6,5.5890271]
[1750879774032,1.823,2437.8,2437.6,1.48663459]
[1750879774205,1.823,2437.8,2437.4,4.86640041]
[1750879774847,5.92508361,2437.8,2437.4,0.7637]
[1750879775043,5.92508361,2437.8,2437.3,4.10281238]
[1750879775250,8.678,2437.8,2437.0,0.7989]
[1750879775693,0.2048,2437.6,2437.2,0.2048]
[1750879775893,0.2048,2437.6,2437.2,10.2048]
[1750879776094,0.2048,2437.6,2437.3,4.10278032]
[1750879776292,4.88367051,2437.9,2436.9,4.5137795]
[1750879776293,4.10333052,2437.1,2436.9,0.41021672]
[1750879776521,1.823,2437.0,2436.9,0.41021672]
[1750879776724,5.92640582,2437.0,2436.9,0.41021672]
[1750879777023,6.72350582,2437.0,2436.9,0.41021672]
[1750879777224,6.72350582,2437.0,2436.4,0.97850836]
[1750879777415,2.6201,2437.0,2436.2,4.10474428]
[1750879777616,4.10365476,2436.9,2436.3,10.48781443]
[1750879777818,4.10365476,2436.9,2436.3,4.59235112]
[1750879778015,4.10365476,2436.9,2436.4,10.0]
[1750879778200,4.10375853,2436.8,2436.3,4.59235112]
[1750879779033,4.10364517,2436.9,2436.3,4.59235112]
[1750879779202,6.7235635,2437.0,2436.4,0.54140201]
[1750879779525,4.10366633,2436.9,2436.4,0.54140201]
[1750879779828,6.72358769,2437.0,2436.5,4.1042322]
[1750879780414,2.6201,2437.0,2436.5,4.1042322]
[1750879780615,0.7971,2437.0,2436.7,4.10387347]
[1750879780821,8.686,2436.9,2436.7,0.82081214]
[1750879781512,8.686,2436.9,2436.6,4.1039936]
[1750879782005,4.10383737,2436.8,2436.3,4.1045825]
[1750879782208,1.823,2436.7,2436.3,4.1045825]
[1750879782434,1.823,2436.7,2436.1,4.8782244]
[1750879782734,5.92699554,2436.7,2436.2,5.59256421]
[1750879782937,1.823,2436.7,2436.3,4.10450301]
[1750879783434,1.823,2436.7,2436.4,4.1043934]
[1750879784630,1.823,2436.7,2436.5,4.10422023]
[1750879785011,4.90059383,2437.0,2436.5,4.10422023]
[1750879785200,1.823,2436.6,2436.5,4.10422023]
[1750879785738,1.823,2436.6,2436.4,5.07402156]
[1750879786335,1.824,2436.5,2436.4,5.07402156]
[1750879786900,0.2048,2436.7,2436.5,4.10423343]
[1750879787104,1.824,2436.6,2436.5,4.10423343]
[1750879788149,0.2048,2436.7,2436.6,4.10407945]
[1750879788312,1.824,2436.7,2436.6,4.10407945]
[1750879788514,1.824,2436.7,2436.6,4.30887945]
[1750879788938,7.8579,2437.0,2436.7,4.1037816]
[1750879789123,1.0019,2437.0,2436.7,4.10391102]
[1750879789543,1.0019,2437.0,2436.9,4.10357421]
[1750879789744,2.0288,2437.0,2436.8,4.10373691]
[1750879789964,2.0288,2437.0,2436.7,0.52470376]
[1750879790142,2.0288,2437.0,2436.6,0.2048]
[1750879790143,4.30820731,2437.0,2436.6,0.2048]
[1750879790341,1.824,2436.9,2436.6,0.2048]
[1750879790589,1.824,2436.9,2436.6,4.30887862]
[1750879791369,1.824,2436.9,2436.6,0.2048]
[1750879791683,4.10391102,2436.7,2436.2,0.8156]
[1750879791880,4.10391102,2436.7,2436.1,10.0]
[1750879791881,4.10452218,2436.4,2436.1,0.2048]
[1750879792045,7.4671911,2436.6,2436.1,0.2048]
[1750879792046,1.824,2436.3,2436.1,0.2048]
[1750879792245,1.824,2436.3,2436.1,4.309621]
[1750879792540,1.824,2436.3,2436.2,4.1047533]
[1750879793481,2.584,2436.3,2435.1,4.85670572]
[1750879793680,0.2048,2436.1,2435.7,4.31031463]
[1750879793866,0.2048,2436.1,2435.7,5.19293926]
[1750879794255,0.2048,2436.1,2435.7,1.08742463]
[1750879794773,0.2048,2436.1,2435.8,4.10532488]
[1750879795076,0.2048,2436.1,2435.7,5.19293505]
[1750879795879,0.2048,2436.1,2435.9,4.10523333]
[1750879796173,0.2048,2436.1,2435.9,4.10520891]
[1750879796746,0.2048,2436.1,2435.8,4.10535462]
[1750879796941,0.2048,2436.1,2435.8,4.10532481]
[1750879798092,0.2048,2436.1,2435.5,0.41005144]
[1750879798093,0.8094,2436.0,2435.5,0.41005144]
[1750879798248,1.57514,2436.0,2435.5,0.41005144]
[1750879798585,4.10568959,2435.7,2435.5,0.41005144]
[1750879798767,1.824,2435.6,2435.5,0.41005144]
[1750879798960,1.824,2435.6,2435.5,4.51598451]
[1750879799166,1.824,2435.6,2435.5,0.41005144]
[1750879799467,1.824,2435.6,2435.5,4.51598451]
[1750879799668,1.824,2435.6,2435.5,4.10593307]
[1750879800452,1.824,2435.6,2434.9,4.10694484]
[1750879800672,1.824,2435.6,2435.5,4.10593307]
[1750879800988,1.824,2435.9,2435.1,10.7805]
[1750879801279,0.78782087,2435.9,2435.7,4.10551]
[1750879801582,0.78782087,2435.9,2435.8,4.10542737]
[1750879802088,0.78782087,2435.9,2435.7,4.10551]
[1750879802089,0.78782087,2435.9,2435.6,4.10561846]
[1750879802294,0.8302,2435.8,2435.6,4.10561846]
[1750879802584,0.8302,2435.8,2435.4,4.10603756]
[1750879802585,1.823,2435.7,2435.4,4.10606439]
[1750879802786,1.823,2435.7,2435.5,4.10590667]
[1750879803088,1.823,2435.7,2435.4,4.10600954]
[1750879803261,1.823,2435.7,2435.5,4.10592443]
[1750879803460,1.823,2435.7,2435.1,14.9169838]
[1750879803660,1.823,2435.7,2435.2,1.54057283]
[1750879803861,1.823,2435.7,2435.4,4.1059688]
[1750879804182,1.823,2435.7,2435.5,4.10582464]
[1750879804363,0.8302,2435.8,2435.5,4.10582464]
[1750879804563,1.823,2435.6,2435.5,4.10582464]
[1750879804995,0.8302,2435.8,2435.5,4.10582464]